fUSD/lending_fUSD_20250215
["ID","MTS","AMOUNT","RATE_DAILY","PERIOD"]
[353133289,1739592634809,-601.41,0.00010958,2]
[353133290,1739592634820,-500.0,0.00010958,2]
[353133291,1739592634829,-500.0,0.00010958,2]
[353133292,1739592634839,-500.0,0.00010958,2]
[353133293,1739592634849,-500.0,0.00010958,2]
[353133294,1739592634859,-500.0,0.00010958,2]
[353133295,1739592634869,-502.9540041,0.00010958,2]
[353133296,1739592634878,-500.0,0.00010958,2]
[353133297,1739592634886,-500.0,0.00010958,2]
[353133298,1739592634897,-500.0,0.00010958,2]
[353133299,1739592634907,-500.0,0.00010958,2]
[353133300,1739592634916,-639.89,0.00010958,2]
[353133301,1739592634926,-500.0,0.00010958,2]
[353133302,1739592634936,-500.0,0.00010958,2]
[353133303,1739592634946,-509.07371761,0.00010958,2]
[353133304,1739592634955,-500.0,0.00010958,2]
[353133305,1739592634964,-586.88,0.00010958,2]
[353133306,1739592634973,-500.0,0.00010958,2]
[353133307,1739592634983,-497.34,0.00010958,2]
[353133308,1739592634993,-507.74,0.00010958,2]
[353133309,1739592635003,-496.66,0.00010958,2]
[353133310,1739592635012,-492.92,0.00010958,2]
[353133311,1739592635022,-501.1,0.00010958,2]
[353133312,1739592635031,-150.0,0.0001098,2]
[353133313,1739592635041,-500.0,0.00010995,2]
[353133314,1739592635050,-931.77,0.00010995,2]
[353133315,1739592635060,-993.24,0.00010995,2]
[353133316,1739592635069,-743.76,0.00010995,2]
[353133317,1739592635079,-508.22,0.00010995,2]
[353133318,1739592635092,-802.69,0.00010995,2]
[353133319,1739592635101,-500.0,0.00010995,2]
[353133320,1739592635111,-500.0,0.00010995,2]
[353133321,1739592635121,-500.0,0.00010995,2]
[353133322,1739592635131,-500.0,0.00010995,2]
[353133323,1739592635140,-500.0,0.00010995,2]
[353133324,1739592635150,-500.0,0.00010995,2]
[353133325,1739592635161,-500.0,0.00010995,2]
[353133326,1739592635171,-500.0,0.00010995,2]
[353133327,1739592635180,-896.78,0.00010995,2]
[353133328,1739592635190,-500.0,0.00010995,2]
[353133329,1739592635200,-500.0,0.00010995,2]
[353133330,1739592635210,-617.52093266,0.00010996,2]
[353133331,1739592635220,-501.07509576,0.00010996,2]
[353133332,1739592635230,-501.50826007,0.00010996,2]
[353133333,1739592635239,-501.59355495,0.00010996,2]
[353133334,1739592635249,-500.0,0.00010996,2]
[353133335,1739592635259,-500.62433605,0.00010996,2]
[353133336,1739592635268,-525.44774917,0.00010996,2]
[353133337,1739592635277,-500.0,0.00010996,2]
[353133338,1739592635286,-518.17577422,0.00010996,2]
[353133339,1739592635296,-513.7,0.00010996,2]
[353133340,1739592635305,-501.28040181,0.00010996,2]
[353133341,1739592635316,-500.0,0.00010996,2]
[353133342,1739592635325,-500.0,0.00010996,2]
[353133343,1739592635335,-500.0,0.00010996,2]
[353133344,1739592635344,-500.0,0.00010996,2]
[353133345,1739592635353,-500.0,0.00010996,2]
[353133346,1739592635362,-501.26042803,0.00010996,2]
[353133347,1739592635371,-601.14,0.00010996,2]
[353133348,1739592635380,-500.0,0.00010996,2]
[353133349,1739592635390,-500.0,0.00010996,2]
[353133350,1739592635399,-500.0,0.00010996,2]
[353133351,1739592635408,-500.0,0.00010996,2]
[353133352,1739592635418,-500.0,0.00010996,2]
[353133353,1739592635427,-500.0,0.00010996,2]
[353133354,1739592635436,-566.47,0.00010996,2]
[353133355,1739592635446,-500.0,0.00010996,2]
[353133356,1739592635456,-519.09752643,0.00010996,2]
[353133357,1739592635466,-500.0,0.00010996,2]
[353133358,1739592635475,-500.0,0.00010996,2]
[353133359,1739592635484,-500.0,0.00010996,2]
[353133360,1739592635494,-500.0,0.00010996,2]
[353133361,1739592635504,-500.0,0.00010996,2]
[353133362,1739592635516,-501.25609229,0.00010996,2]
[353133363,1739592635527,-500.0,0.00010996,2]
[353133364,1739592635536,-501.29030709,0.00010996,2]
[353133365,1739592635545,-500.0,0.00010996,2]
[353133366,1739592635555,-501.26299455,0.00010996,2]
[353133367,1739592635565,-524.53970427,0.00010996,2]
[353133368,1739592635574,-500.0,0.00010996,2]
[353133369,1739592635583,-500.0,0.00010996,2]
[353133370,1739592635593,-393.4956918,0.00010996,2]
[353133371,1739592635602,-500.0,0.00010996,2]
[353133372,1739592635612,-500.0,0.00010996,2]
[353133373,1739592635622,-500.0,0.00010996,2]
[353133374,1739592635631,-500.0,0.00010996,2]
[353133375,1739592635640,-501.47272399,0.00010996,2]
[353133376,1739592635649,-500.0,0.00010996,2]
[353133377,1739592635659,-500.0,0.00010996,2]
[353133378,1739592635667,-500.0,0.00010996,2]
[353133379,1739592635677,-534.22485879,0.00010996,2]
[353133380,1739592635686,-500.0,0.00010996,2]
[353133381,1739592635697,-500.0,0.00010996,2]
[353133382,1739592635707,-500.0,0.00010996,2]
[353133383,1739592635716,-500.0,0.00010996,2]
[353133384,1739592635726,-522.75,0.00010996,2]
[353133385,1739592635735,-500.0,0.00010996,2]
[353133386,1739592635745,-501.21570309,0.00010996,2]
[353133387,1739592635754,-500.0,0.00010996,2]
[353133388,1739592635763,-500.0,0.00010996,2]
[353133389,1739592635773,-500.0,0.00010996,2]
[353133390,1739592635782,-500.0,0.00010996,2]
[353133391,1739592635791,-500.0,0.00010996,2]
[353133392,1739592635800,-614.44,0.00010996,2]
[353133393,1739592635808,-417.14166517,0.00010996,2]
[353133394,1739592635817,-546.96336271,0.00010996,2]
[353133395,1739592635827,-619.19,0.00010996,2]
[353133396,1739592635836,-500.0,0.00010996,2]
[353133397,1739592635845,-500.0,0.00010996,2]
[353133398,1739592635854,-500.0,0.00010996,2]
[353133399,1739592635863,-500.0,0.00010996,2]
[353133400,1739592635872,-500.0,0.00010996,2]
[353133401,1739592635881,-503.29861105,0.00010996,2]
[353133402,1739592635890,-735.72,0.00010996,2]
[353133403,1739592635899,-591.93954569,0.00010996,2]
[353133404,1739592635909,-500.0,0.00010996,2]
[353133405,1739592635918,-466.311299,0.00010996,2]
[353133406,1739592635927,-500.0,0.00010996,2]
[353133407,1739592635936,-631.69,0.00010996,2]
[353133408,1739592635946,-501.17145779,0.00010996,2]
[353133409,1739592635956,-502.05739749,0.00010996,2]
[353133410,1739592635965,-500.0,0.00010996,2]
[353133411,1739592635974,-593.81,0.00010996,2]
[353133412,1739592635983,-358.03020312,0.00010996,2]
[353133413,1739592635993,-500.0,0.00010996,2]
[353133414,1739592636002,-161.50201192,0.00010996,2]
[353133415,1739592636011,-585.51,0.00010996,2]
[353133416,1739592636021,-500.0,0.00010996,2]
[353133417,1739592636030,-500.0,0.00010996,2]
[353133418,1739592636039,-546.39,0.00010996,2]
[353133419,1739592636048,-500.0,0.00010996,2]
[353133420,1739592636058,-896.48,0.00010996,2]
[353133421,1739592636067,-500.0,0.00010996,2]
[353133422,1739592636077,-488.17377795,0.00010996,2]
[353133423,1739592636089,-500.0,0.00010996,2]
[353133424,1739592636098,-173.912036,0.00010996,2]
[353133425,1739592636107,-500.0,0.00010996,2]
[353133426,1739592636116,-500.0,0.00010996,2]
[353133427,1739592636126,-934.18,0.00010996,2]
[353133428,1739592636136,-500.0,0.00010996,2]
[353133429,1739592636145,-544.54,0.00010996,2]
[353133430,1739592636155,-502.06568557,0.00010996,2]
[353133431,1739592636164,-156.871423,0.00010996,2]
[353133432,1739592636174,-500.0,0.00010996,2]
[353133433,1739592636183,-1439.04,0.00010996,2]
[353133434,1739592636194,-501.9098056,0.00010996,2]
[353133435,1739592636203,-500.0,0.00010996,2]
[353133436,1739592636212,-500.0,0.00010996,2]
[353133437,1739592636222,-501.82390292,0.00010996,2]
[353133438,1739592636231,-717.86,0.00010996,2]
[353133439,1739592636241,-469.687994,0.00010996,2]
[353133440,1739592636251,-1029.62,0.00010996,2]
[353133441,1739592636261,-712.58,0.00010996,2]
[353133442,1739592636270,-519.6,0.00010996,2]
[353133443,1739592636280,-500.0,0.00010996,2]
[353133444,1739592636290,-539.75245,0.00010996,2]
[353133445,1739592636299,-693.06,0.00010996,2]
[353133446,1739592636309,-1192.79,0.00010996,2]
[353133447,1739592636318,-516.28,0.00010996,2]
[353133448,1739592636328,-164.065529,0.00010996,2]
[353133449,1739592636337,-737.45,0.00010996,2]
[353133450,1739592636347,-500.0,0.00010996,2]
[353133451,1739592636356,-500.0,0.00010996,2]
[353133452,1739592636365,-850.72,0.00010996,2]
[353133453,1739592636375,-713.07,0.00010996,2]
[353133454,1739592636384,-500.0,0.00010996,2]
[353133455,1739592636393,-500.0,0.00010996,2]
[353133456,1739592636402,-1653.38,0.00010996,2]
[353133457,1739592636411,-774.63,0.00010996,2]
[353133458,1739592636421,-899.35,0.00010996,2]
[353133459,1739592636430,-587.14,0.00010996,2]
[353133460,1739592636439,-524.77,0.00010996,2]
[353133461,1739592636449,-649.6,0.00010996,2]
[353133462,1739592636458,-500.0,0.00010996,2]
[353133463,1739592636468,-500.0,0.00010996,2]
[353133464,1739592636478,-574.8,0.00010996,2]
[353133465,1739592636487,-502.43004022,0.00010996,2]
[353133466,1739592636497,-1017.28,0.00010996,2]
[353133467,1739592636506,-1225.39,0.00010996,2]
[353133468,1739592636516,-668.83,0.00010996,2]
[353133469,1739592636525,-585.33,0.00010996,2]
[353133470,1739592636534,-759.44,0.00010996,2]
[353133471,1739592636543,-900.52,0.00010996,2]
[353133472,1739592636552,-5669.06,0.00010996,2]
[353133473,1739592636561,-500.0,0.00010996,2]
[353133474,1739592636571,-502.06850531,0.00010996,2]
[353133475,1739592636580,-904.21,0.00010996,2]
[353133476,1739592636590,-500.0,0.00010996,2]
[353133477,1739592636599,-1561.41,0.00010996,2]
[353133478,1739592636609,-1149.86,0.00010996,2]
[353133479,1739592636618,-500.0,0.00010996,2]
[353133480,1739592636628,-1420.44,0.00010996,2]
[353133481,1739592636637,-1241.8,0.00010996,2]
[353133482,1739592636647,-630.47142396,0.00010996,2]
[353133483,1739592636656,-808.21,0.00010996,2]
[353133484,1739592636666,-1265.46,0.00010996,2]
[353133485,1739592636675,-1099.16,0.00010996,2]
[353133486,1739592636685,-198.31348566,0.00010996,2]
[353133487,1739592636695,-3601.73,0.00010996,2]
[353133488,1739592636705,-1182.94,0.00010996,2]
[353133489,1739592636715,-696.23,0.00010996,2]
[353133490,1739592636724,-500.0,0.00010996,2]
[353133491,1739592636734,-592.01,0.00010996,2]
[353133492,1739592636743,-670.6,0.00010996,2]
[353133493,1739592636753,-1835.11,0.00010996,2]
[353133494,1739592636762,-1249.2,0.00010996,2]
[353133495,1739592636771,-1794.54,0.00010996,2]
[353133496,1739592636781,-500.0,0.00010996,2]
[353133497,1739592636790,-1458.78,0.00010996,2]
[353133498,1739592636799,-627.57,0.00010996,2]
[353133499,1739592636808,-500.0,0.00010996,2]
[353133500,1739592636819,-500.0,0.00010996,2]
[353133501,1739592636829,-1168.39,0.00010996,2]
[353133502,1739592636838,-500.0,0.00010996,2]
[353133503,1739592636847,-890.83,0.00010996,2]
[353133504,1739592636856,-500.0,0.00010997,2]
[353133505,1739592636865,-500.0,0.00010997,2]
[353133506,1739592636875,-502.40214447,0.00010997,2]
[353133507,1739592636884,-639.86,0.00010997,2]
[353133508,1739592636893,-500.0,0.00010997,2]
[353133509,1739592636902,-500.0,0.00010997,2]
[353133510,1739592636912,-500.0,0.00010997,2]
[353133511,1739592636921,-500.0,0.00010997,2]
[353133512,1739592636931,-500.0,0.00010997,2]
[353133513,1739592636940,-501.70808999,0.00010997,2]
[353133514,1739592636949,-510.31207712,0.00010997,2]
[353133515,1739592636958,-504.02007906,0.00010997,2]
[353133516,1739592636967,-500.43708325,0.00010997,2]
[353133517,1739592636976,-501.53326184,0.00010997,2]
[353133518,1739592636986,-500.0,0.00010997,2]
[353133519,1739592636995,-500.0,0.00010997,2]
[353133520,1739592637005,-501.31199593,0.00010997,2]
[353133521,1739592637015,-502.15254518,0.00010997,2]
[353133522,1739592637024,-500.0,0.00010997,2]
[353133523,1739592637034,-510.64789577,0.00010997,2]
[353133524,1739592637043,-500.0,0.00010997,2]
[353133525,1739592637053,-500.0,0.00010997,2]
[353133526,1739592637062,-500.0,0.00010997,2]
[353133527,1739592637071,-550.52,0.00010997,2]
[353133528,1739592637081,-500.0,0.00010997,2]
[353133529,1739592637093,-500.0,0.00010997,2]
[353133530,1739592637102,-501.05333239,0.00010997,2]
[353133531,1739592637112,-500.0,0.00010997,2]
[353133532,1739592637122,-500.0,0.00010997,2]
[353133533,1739592637132,-501.51336553,0.00010997,2]
[353133534,1739592637142,-507.87458461,0.00010997,2]
[353133535,1739592637151,-504.36948586,0.00010997,2]
[353133536,1739592637161,-500.0,0.00010997,2]
[353133537,1739592637170,-500.0,0.00010997,2]
[353133538,1739592637181,-500.0,0.00010997,2]
[353133539,1739592637190,-500.0,0.00010997,2]
[353133540,1739592637199,-500.0,0.00010997,2]
[353133541,1739592637209,-500.0,0.00010997,2]
[353133542,1739592637218,-500.0,0.00010997,2]
[353133543,1739592637228,-500.0,0.00010997,2]
[353133544,1739592637238,-503.07452328,0.00010997,2]
[353133545,1739592637247,-500.0,0.00010997,2]
[353133546,1739592637257,-500.0,0.00010997,2]
[353133547,1739592637266,-500.0,0.00010997,2]
[353133548,1739592637275,-500.0,0.00010997,2]
[353133549,1739592637285,-503.97794374,0.00010997,2]
[353133550,1739592637295,-502.84203094,0.00010997,2]
[353133551,1739592637303,-500.0,0.00010997,2]
[353133552,1739592637313,-500.0,0.00010997,2]
[353133553,1739592637322,-500.0,0.00010997,2]
[353133554,1739592637331,-502.29497827,0.00010997,2]
[353133555,1739592637340,-500.0,0.00010997,2]
[353133556,1739592637349,-500.0,0.00010997,2]
[353133557,1739592637358,-500.86854493,0.00010997,2]
[353133558,1739592637368,-500.0,0.00010997,2]
[353133559,1739592637377,-500.0,0.00010997,2]
[353133560,1739592637387,-500.0,0.00010997,2]
[353133561,1739592637397,-500.0,0.00010997,2]
[353133562,1739592637406,-500.0,0.00010997,2]
[353133563,1739592637416,-500.0,0.00010997,2]
[353133564,1739592637426,-500.0,0.00010997,2]
[353133565,1739592637435,-500.0,0.00010997,2]
[353133566,1739592637446,-500.80938769,0.00010997,2]
[353133567,1739592637456,-500.0,0.00010997,2]
[353133568,1739592637465,-500.0,0.00010997,2]
[353133569,1739592637475,-500.0,0.00010997,2]
[353133570,1739592637485,-531.80631726,0.00010997,2]
[353133571,1739592637494,-500.0,0.00010997,2]
[353133572,1739592637503,-500.0,0.00010997,2]
[353133573,1739592637513,-500.0,0.00010997,2]
[353133574,1739592637522,-500.0,0.00010997,2]
[353133575,1739592637531,-500.0,0.00010997,2]
[353133576,1739592637540,-500.0,0.00010997,2]
[353133577,1739592637549,-272.74663412,0.00010997,2]
[353133578,1739592637558,-500.0,0.00010997,2]
[353133579,1739592637567,-500.0,0.00010997,2]
[353133580,1739592637576,-500.0,0.00010997,2]
[353133581,1739592637585,-500.0,0.00010997,2]
[353133582,1739592637594,-500.0,0.00010997,2]
[353133583,1739592637603,-500.0,0.00010997,2]
[353133584,1739592637612,-500.0,0.00010997,2]
[353133585,1739592637622,-502.48735559,0.00010997,2]
[353133586,1739592637631,-539.98,0.00010997,2]
[353133587,1739592637641,-500.0,0.00010997,2]
[353133588,1739592637650,-500.0,0.00010997,2]
[353133589,1739592637659,-500.0,0.00010997,2]
[353133590,1739592637668,-500.0,0.00010997,2]
[353133591,1739592637678,-500.0,0.00010997,2]
[353133592,1739592637687,-500.61778684,0.00010997,2]
[353133593,1739592637697,-500.0,0.00010997,2]
[353133594,1739592637707,-500.0,0.00010997,2]
[353133595,1739592637716,-500.0,0.00010997,2]
[353133596,1739592637726,-500.0,0.00010997,2]
[353133597,1739592637737,-500.0,0.00010997,2]
[353133598,1739592637747,-500.0,0.00010997,2]
[353133599,1739592637756,-500.0,0.00010997,2]
[353133600,1739592637766,-501.61704198,0.00010997,2]
[353133601,1739592637775,-500.0,0.00010997,2]
[353133602,1739592637785,-500.0,0.00010997,2]
[353133603,1739592637794,-500.0,0.00010997,2]
[353133604,1739592637803,-500.0,0.00010997,2]
[353133605,1739592637812,-501.94613126,0.00010997,2]
[353133606,1739592637821,-500.0,0.00010997,2]
[353133607,1739592637832,-500.0,0.00010997,2]
[353133608,1739592637841,-500.0,0.00010997,2]
[353133609,1739592637851,-500.0,0.00010997,2]
[353133610,1739592637862,-500.0,0.00010997,2]
[353133611,1739592637871,-593.51642815,0.00010997,2]
[353133612,1739592637880,-500.0,0.00010997,2]
[353133613,1739592637890,-500.0,0.00010997,2]
[353133614,1739592637899,-500.0,0.00010997,2]
[353133615,1739592637908,-513.36892056,0.00010997,2]
[353133616,1739592637917,-500.0,0.00010997,2]
[353133617,1739592637926,-431.42010748,0.00010997,2]
[353133618,1739592637935,-198.35881073,0.00010997,2]
[353133619,1739592637945,-515.21341065,0.00010997,2]
[353133620,1739592637955,-522.38195133,0.00010997,2]
[353133621,1739592637964,-500.0,0.00010997,2]
[353133622,1739592637974,-500.0,0.00010997,2]
[353133623,1739592637983,-500.0,0.00010997,2]
[353133624,1739592637992,-500.0,0.00010997,2]
[353133625,1739592638002,-500.0,0.00010997,2]
[353133626,1739592638011,-500.0,0.00010997,2]
[353133627,1739592638021,-500.0,0.00010997,2]
[353133628,1739592638030,-500.0,0.00010997,2]
[353133629,1739592638040,-500.0,0.00010997,2]
[353133630,1739592638049,-500.0,0.00010997,2]
[353133631,1739592638059,-500.0,0.00010997,2]
[353133632,1739592638068,-500.0,0.00010997,2]
[353133633,1739592638079,-500.0,0.00010997,2]
[353133634,1739592638091,-500.0,0.00010997,2]
[353133635,1739592638100,-244.85799184,0.00010997,2]
[353133636,1739592638110,-500.0,0.00010997,2]
[353133637,1739592638119,-500.0,0.00010997,2]
[353133639,1739592638130,-500.0,0.00010997,2]
[353133641,1739592638139,-500.0,0.00010997,2]
[353133643,1739592638150,-500.0,0.00010997,2]
[353133644,1739592638160,-500.74814861,0.00010997,2]
[353133645,1739592638170,-500.0,0.00010997,2]
[353133646,1739592638180,-699.54,0.00010997,2]
[353133648,1739592638190,-500.0,0.00010997,2]
[353133649,1739592638449,-500.0,0.00010997,2]
[353133650,1739592638464,-500.0,0.00010997,2]
[353133651,1739592638474,-519.34,0.00010997,2]
[353133652,1739592638484,-500.0,0.00010997,2]
[353133653,1739592638494,-500.0,0.00010997,2]
[353133654,1739592638505,-500.0,0.00010997,2]
[353133655,1739592638515,-500.0,0.00010997,2]
[353133656,1739592638524,-500.0,0.00010997,2]
[353133657,1739592638534,-500.0,0.00010997,2]
[353133658,1739592638543,-500.0,0.00010997,2]
[353133659,1739592638552,-500.0,0.00010997,2]
[353133660,1739592638561,-500.0,0.00010997,2]
[353133661,1739592638571,-500.0,0.00010997,2]
[353133662,1739592638580,-344.21339099,0.00010997,2]
[353133663,1739592638589,-500.0,0.00010997,2]
[353133664,1739592638599,-500.0,0.00010997,2]
[353133665,1739592638609,-500.0,0.00010997,2]
[353133666,1739592638618,-491.61386336,0.00010997,2]
[353133667,1739592638628,-500.0,0.00010997,2]
[353133668,1739592638637,-500.0,0.00010997,2]
[353133669,1739592638647,-500.0,0.00010997,2]
[353133670,1739592638658,-662.41,0.00010997,2]
[353133671,1739592638667,-500.0,0.00010997,2]
[353133672,1739592638677,-500.0,0.00010997,2]
[353133673,1739592638686,-500.0,0.00010997,2]
[353133674,1739592638696,-500.0,0.00010997,2]
[353133675,1739592638707,-500.0,0.00010997,2]
[353133676,1739592638717,-500.0,0.00010997,2]
[353133677,1739592638727,-669.98,0.00010997,2]
[353133678,1739592638737,-500.0,0.00010997,2]
[353133679,1739592638746,-500.0,0.00010997,2]
[353133680,1739592638757,-500.0,0.00010997,2]
[353133681,1739592638767,-502.27823864,0.00010997,2]
[353133682,1739592638777,-678.11,0.00010997,2]
[353133683,1739592638787,-500.0,0.00010997,2]
[353133684,1739592638796,-500.0,0.00010997,2]
[353133685,1739592638806,-511.73091947,0.00010997,2]
[353133686,1739592638818,-718.14,0.00010997,2]
[353133687,1739592638829,-307.67165807,0.00010997,2]
[353133688,1739592638838,-500.0,0.00010997,2]
[353133689,1739592638848,-500.0,0.00010997,2]
[353133690,1739592638858,-500.0,0.00010997,2]
[353133691,1739592638868,-585.58,0.00010997,2]
[353133692,1739592638877,-500.0,0.00010997,2]
[353133693,1739592638886,-500.0,0.00010997,2]
[353133694,1739592638895,-503.35023174,0.00010997,2]
[353133695,1739592638905,-504.5644992,0.00010997,2]
[353133696,1739592638914,-502.79454332,0.00010997,2]
[353133697,1739592638924,-500.0,0.00010997,2]
[353133698,1739592638933,-479.08206827,0.00010997,2]
[353133699,1739592638943,-500.0,0.00010997,2]
[353133700,1739592638953,-500.0,0.00010997,2]
[353133701,1739592638963,-500.0,0.00010997,2]
[353133702,1739592638972,-502.57699079,0.00010997,2]
[353133703,1739592638982,-500.0,0.00010997,2]
[353133704,1739592638991,-965.85,0.00010997,2]
[353133705,1739592639001,-970.07,0.00010997,2]
[353133706,1739592639010,-501.85721622,0.00010997,2]
[353133707,1739592639020,-500.0,0.00010997,2]
[353133708,1739592639030,-605.66,0.00010997,2]
[353133709,1739592639040,-500.0,0.00010997,2]
[353133710,1739592639050,-501.96529301,0.00010997,2]
[353133711,1739592639059,-505.06,0.00010997,2]
[353133712,1739592639069,-500.0,0.00010997,2]
[353133713,1739592639079,-500.0,0.00010997,2]
[353133714,1739592639092,-1309.55,0.00010997,2]
[353133715,1739592639101,-500.0,0.00010997,2]
[353133716,1739592639111,-820.69,0.00010997,2]
[353133717,1739592639120,-500.0,0.00010997,2]
[353133718,1739592639130,-500.0,0.00010997,2]
[353133719,1739592639140,-500.0,0.00010997,2]
[353133720,1739592639149,-500.0,0.00010997,2]
[353133721,1739592639160,-1015.49,0.00010997,2]
[353133722,1739592639169,-196.71281643,0.00010997,2]
[353133723,1739592639179,-500.0,0.00010997,2]
[353133724,1739592639188,-1073.79,0.00010997,2]
[353133725,1739592639198,-500.0,0.00010997,2]
[353133726,1739592639207,-1353.2,0.00010997,2]
[353133727,1739592639216,-215.25453313,0.00010997,2]
[353133728,1739592639226,-500.0,0.00010997,2]
[353133729,1739592639235,-1542.3,0.00010997,2]
[353133730,1739592639245,-718.95,0.00010997,2]
[353133731,1739592639255,-1051.63,0.00010997,2]
[353133732,1739592639265,-500.0,0.00010997,2]
[353133733,1739592639275,-504.21850638,0.00010997,2]
[353133734,1739592639285,-500.0,0.00010997,2]
[353133735,1739592639294,-1059.44,0.00010997,2]
[353133736,1739592639304,-500.0,0.00010997,2]
[353133737,1739592639316,-500.0,0.00010997,2]
[353133738,1739592639326,-500.0,0.00010997,2]
[353133739,1739592639336,-961.85,0.00010997,2]
[353133740,1739592639346,-500.0,0.00010997,2]
[353133741,1739592639356,-500.0,0.00010997,2]
[353133742,1739592639366,-500.0,0.00010997,2]
[353133743,1739592639386,-1361.54,0.00010997,2]
[353133744,1739592639399,-762.61,0.00010997,2]
[353133745,1739592639409,-500.0,0.00010997,2]
[353133746,1739592639419,-500.0,0.00010997,2]
[353133747,1739592639430,-500.0,0.00010997,2]
[353133748,1739592639441,-1478.58,0.00010997,2]
[353133749,1739592639451,-500.0,0.00010997,2]
[353133750,1739592639462,-2120.86064835,0.00010997,2]
[353133751,1739592639490,-201.85935165,0.00010997,2]
[353133752,1739592639500,-477.46970867,0.00010997,2]
[353133753,1739592639511,-317.26147752,0.00010997,2]
[353133754,1739592639524,-182.73852248,0.00010997,2]
[353133755,1739592639534,-500.0,0.00010997,2]
[353133756,1739592639545,-3790.98,0.00010997,2]
[353133757,1739592639556,-502.88961343,0.00010997,2]
[353133758,1739592639566,-426.31186405,0.00010997,2]
[353133759,1739592639580,-73.68813595,0.00010997,2]
[353133760,1739592639592,-1305.32,0.00010997,2]
[353133761,1739592639603,-387.59186455,0.00010997,2]
[353133766,1739592640435,-500.0,0.00010958,2]
[353133767,1739592640445,-500.0,0.00010995,2]
[353133768,1739592640455,-500.0,0.00010995,2]
[353133769,1739592640465,-500.0,0.00010996,2]
[353133770,1739592640475,-112.40813545,0.00010997,2]
[353133771,1739592640485,-486.55050386,0.00010997,2]
[353133772,1739592640495,-171.40593037,0.00010997,2]
[353133773,1739592640506,-328.59406963,0.00010997,2]
[353133774,1739592640516,-241.38596644,0.00010997,2]
[353133775,1739592640526,-500.0,0.00010997,2]
[353133776,1739592640536,-500.0,0.00010997,2]
[353133777,1739592640546,-923.54,0.00010997,2]
[353133778,1739592640555,-500.0,0.00010997,2]
[353133779,1739592640565,-1392.25,0.00010997,2]
[353133780,1739592640575,-500.0,0.00010997,2]
[353133781,1739592640585,-358.14772739,0.00010997,2]
[353133782,1739592640595,-500.0,0.00010997,2]
[353133783,1739592640605,-500.0,0.00010997,2]
[353133784,1739592640615,-469.54167698,0.00010997,2]
[353133785,1739592640624,-522.64488868,0.00010997,2]
[353133786,1739592640634,-1161.05,0.00010997,2]
[353133787,1739592640644,-208.24567087,0.00010997,2]
[353133792,1739592641118,-297.16380756,0.00010997,2]
[353133793,1739592641128,-921.66,0.00010997,2]
[353133794,1739592641137,-500.0,0.00010997,2]
[353133795,1739592641146,-508.41316122,0.00010997,2]
[353133796,1739592641156,-500.0,0.00010997,2]
[353133797,1739592641165,-2688.76,0.00010997,2]
[353133798,1739592641174,-500.0,0.00010997,2]
[353133799,1739592641183,-1266.18,0.00010997,2]
[353133800,1739592641193,-500.0,0.00010997,2]